[Event "Uhlenkoeper-Open 2024"]
[Site "Uelzen"]
[Date "2024.12.28"]
[Round "3.1"]
[White "Stelmaszyk, Nico"]
[Black "Weigand, Anton"]
[Result "1/2-1/2"]
[ECO "E11"]
[WhiteElo "2403"]
[BlackElo "2092"]
[Annotator "TA"]
[PlyCount "84"]
[EventDate "2024.12.27"]
[EventType "swiss"]
[EventCountry "GER"]
[SourceTitle "playchess.com"]
[Source "ChessBase"]
[SourceQuality "1"]
[TimeControl "40/5400+30:1800+30"]

{[%evp 14,84,22,24,26,21,29,28,28,16,22,16,56,47,47,56,59,52,60,52,58,47,55,35,69,75,85,76,84,85,89,89,96,16,10,5,22,0,45,33,40,47,91,74,70,0,0,0,0,0,14,9,9,7,12,0,0,0,0,-10,-16,-28,-8,-18,0,-20,0,-8,0,0,0,0,0]} 1. d4 {[%emt 0:00:04]} d5 {[%emt 0:01:36]} 2. c4 {[%emt 0:00:05]} e6 {[%emt 0:00:11]} 3. Nf3 {[%emt 0:00:11]} Nf6 {[%emt 0:00:17]} 4. g3 {[%emt 0:00:05]} Bb4+ {[%emt 0:08:03]} 5. Bd2 {[%emt 0:00:06]} Bxd2+ {[%emt 0:00:19]} 6. Qxd2 {[%emt 0:01:56]} O-O {[%emt 0:01:48]} 7. Bg2 {[%emt 0:02:06]} Nbd7 {[%emt 0:02:38]} 8. O-O {[%emt 0:01:58]} c6 {[%emt 0:01:53]} 9. Ne5 {[%emt 0:09:25]} Nxe5 {[%emt 0:02:08]} 10. dxe5 {[%emt 0:00:10]} Nd7 {[%emt 0:00:25] White has an edge.} 11. f4 {[%emt 0:02:38]} f6 {[%emt 0:00:01]} 12. exf6 {[%emt 0:06:58]} Qxf6 {[%emt 0:00:55]} 13. e4 {[%emt 0:02:43]} Nb6 {[%emt 0:05:39]} 14. e5 {[%emt 0:04:55]} (14. exd5 $2 {is the wrong capture.} Nxc4 15. Qc3 exd5 $19 (15... Nxb2 16. dxc6 bxc6 17. Rf3 $11)) 14... Qe7 {[%emt 0:00:05]} 15. Na3 {[%emt 0:04:29]} dxc4 {[%emt 0:05:33]} 16. Rfd1 {[%emt 0:01:57]} Bd7 {[%emt 0:01:11]} 17. Rac1 {[%emt 0:04:56]} Rfd8 {[%emt 0:02:41]} ({Much weaker is} 17... Qc5+ 18. Qd4 Qxd4+ 19. Rxd4 $16) 18. Nxc4 {[%emt 0:04:08]} Nxc4 {[%emt 0:00:02]} 19. Rxc4 {[%emt 0:00:08] [#] Rd4 is the strong threat.} Be8 {[%emt 0:01:45]} 20. Rd4 {[%emt 0:01:03][%cal Rd4d8]} Qc5 {[%emt 0:00:17]} 21. Be4 {[%emt 0:13:03]} Rd7 {[%emt 0:09:30] Strongly threatening ...Rad8.} 22. Qf2 {[%emt 0:08:09]} Rad8 {[%emt 0:00:47] [#]} 23. Rd6 {[%emt 0:00:48] White is much more active.} Rxd6 $11 {[%emt 0:02:17]} 24. exd6 {[%emt 0:00:12]} Qb4 {[%emt 0:07:05]} 25. Rd4 {[%emt 0:01:22]} Qc5 {[%emt 0:00:02]} 26. b4 {[%emt 0:02:00]} Qb6 {[%emt 0:01:50]} 27. Kg2 {[%emt 0:02:39]} c5 {[%emt 0:01:14]} 28. bxc5 {[%emt 0:01:38]} Qxc5 {[%emt 0:00:04]} 29. Qd2 {[%emt 0:01:18]} ({White should try} 29. Bxb7 $14 Rxd6 30. Rxd6 Qxd6 31. Qxa7) 29... Bc6 {[%emt 0:00:17]} 30. Bxc6 {[%emt 0:00:32]} Qxc6+ {[%emt 0:00:02][%mdl 4096] Endgame. KQR-KQR} 31. Kh3 {[%emt 0:02:34]} Rd7 {[%emt 0:00:48]} 32. Qb4 {[%emt 0:03:09]} b6 {[%emt 0:03:17]} 33. Rd2 {[%emt 0:00:20]} Qc5 {[%emt 0:03:49]} 34. Qd4 {[%emt 0:01:27]} Qxd4 {[%emt 0:00:34]} 35. Rxd4 {[%emt 0:00:05] KR-KR} Kf7 {[%emt 0:01:50]} 36. g4 {[%emt 0:01:11]} Ke8 {[%emt 0:01:52]} 37. Kh4 {[%emt 0:12:20]} Rd8 {[%emt 0:09:21]} 38. Kg5 {[%emt 0:06:42] The position is equal.} Kd7 39. h4 {[%emt 0:00:00]} Rc8 {[%emt 0:02:07]} 40. h5 {[%emt 0:00:00]} Rc5+ {[%emt 0:00:04]} 41. f5 {[%emt 0:25:01]} exf5 {[%emt 0:35:25]} 42. gxf5 {[%emt 0:00:06]} Rc2 {[%emt 0:01:50] Weighted Error Value: White=0.11 (very precise) /Black=0.07 (flawless) .  Mistake:       	White=2     	---        Inaccurate:     	---       	Black=4      OK:         	White=11    	Black=19     Best:        	White=2     	Black=2} 1/2-1/2

[Event "Uhlenkoeper-Open 2024"]
[Site "Uelzen"]
[Date "2024.12.28"]
[Round "3.2"]
[White "Askerov, Imamali"]
[Black "Glek, Igor"]
[Result "0-1"]
[ECO "B38"]
[WhiteElo "2007"]
[BlackElo "2431"]
[Annotator "TA"]
[PlyCount "108"]
[EventDate "2024.12.27"]
[EventType "swiss"]
[EventCountry "GER"]
[SourceTitle "playchess.com"]
[Source "ChessBase"]
[SourceQuality "1"]
[TimeControl "40/5400+30:1800+30"]

{[%evp 20,108,47,47,31,22,29,26,23,10,29,6,6,10,18,3,22,16,14,11,17,0,0,-49,-49,-49,-49,-49,-49,-49,-49,-49,-49,-49,-50,-49,-49,-56,-49,-49,-49,-49,-47,-48,-8,-9,-14,-49,-49,-49,-48,-33,-30,-106,-106,-106,-106,-106,-106,-135,-115,-106,-108,-122,-125,-187,-181,-168,-129,-218,-210,-471,-388,-348,-328,-297,-231,-29976,-29979,-29979,-29977,-29977,-29978,-29984,-29985,-29985,-29986,-29986,-29987,-29987,-29988]} 1. e4 {[%emt 0:00:04]} c5 {[%emt 0:03:00]} 2. Nf3 {[%emt 0:00:46]} g6 {[%emt 0:00:31]} 3. c4 {[%emt 0:09:23]} Nc6 {[%emt 0:07:13]} 4. d4 {[%emt 0:01:20]} cxd4 {[%emt 0:00:06]} 5. Nxd4 {[%emt 0:00:05]} Bg7 {[%emt 0:05:02]} 6. Be3 {[%emt 0:01:44]} Nf6 {[%emt 0:00:06]} 7. Nc3 {[%emt 0:00:11]} O-O {[%emt 0:02:19]} 8. Be2 {[%emt 0:05:38]} d6 {[%emt 0:00:22]} 9. O-O {[%emt 0:03:12]} Bd7 {[%emt 0:00:06]} 10. Rc1 {[%emt 0:03:50]} Nxd4 {[%emt 0:00:30]} 11. Bxd4 {[%emt 0:00:32]} Bh6 {[%emt 0:00:42]} 12. f4 {[%emt 0:21:22]} Bc6 {[%emt 0:00:18]} 13. Bxf6 {[%emt 0:09:25]} exf6 {[%emt 0:00:06] White has an edge.} 14. Qd4 {[%emt 0:06:58]} Bg7 {[%emt 0:09:41]} 15. Qd2 {[%emt 0:01:38]} Qb6+ {[%emt 0:07:17]} 16. Kh1 {[%emt 0:00:09]} Rfe8 {[%emt 0:02:06]} 17. Bf3 {[%emt 0:01:41][%cal Of1d1]} Rad8 {[%emt 0:03:32]} 18. b3 {[%emt 0:09:37]} Qa5 {[%emt 0:06:16] Dodges Nd5} 19. Qd3 {[%emt 0:01:45]} a6 {[%emt 0:00:10]} 20. Rc2 {[%emt 0:05:16]} f5 {[%emt 0:03:05]} 21. Nd5 {[%emt 0:12:20]} (21. exf5 $11 Bxf3 22. Qxf3 Qxf5 23. Qd1 Bxc3 24. Rxc3) 21... Bxd5 $15 {[%emt 0:01:43]} 22. Qxd5 {[%emt 0:01:06]} Qxd5 {[%emt 0:00:28]} 23. exd5 {[%emt 0:00:04]} Bd4 {[%emt 0:00:04]} 24. g3 {[%emt 0:00:55] White is weak on the dark squares} Re3 {[%emt 0:00:52]} 25. Kg2 {[%emt 0:00:05]} Bc5 {[%emt 0:01:19]} 26. Rff2 {[%emt 0:01:44]} Kf8 {[%emt 0:06:32]} 27. Rfe2 {[%emt 0:00:03]} Rde8 {[%emt 0:00:18]} 28. Rcd2 {[%emt 0:01:13]} h5 {[%emt 0:02:20]} 29. Rc2 {[%emt 0:00:47]} a5 {[%emt 0:06:10]} 30. Rb2 {[%emt 0:00:53]} b6 {[%emt 0:00:22]} 31. Rbd2 {[%emt 0:01:10]} a4 {[%emt 0:00:43]} 32. Rxe3 {[%emt 0:00:04]} Rxe3 $11 {[%emt 0:00:08][%mdl 4096] Endgame. KRB-KRB} 33. Bd1 {[%emt 0:00:05]} a3 {[%emt 0:00:23]} 34. Re2 {[%emt 0:01:40]} Rd3 {[%emt 0:01:55]} 35. Bc2 {[%emt 0:00:03]} Rc3 {[%emt 0:00:14][%cal Oh5h4]} 36. Kf1 {[%emt 0:00:30] [#]} (36. h4 $1 $11 {keeps the balance.}) 36... h4 $1 $17 {[%emt 0:04:39][%mdl 512]} 37. Kg2 {[%emt 0:00:06]} hxg3 {[%emt 0:00:20]} 38. hxg3 {[%emt 0:00:04]} Kg7 {[%emt 0:00:07] Black is more active.} 39. Kh3 {[%emt 0:01:36]} Kf6 {[%emt 0:00:25]} 40. Kg2 {[%emt 0:00:42]} g5 {[%emt 0:04:24]} 41. fxg5+ {[%emt 0:22:50]} Kxg5 {[%emt 0:00:08]} 42. Bd1 {[%emt 0:00:58]} (42. Rd2 $17 {was necessary.}) 42... f4 $19 {[%emt 0:18:21]} 43. gxf4+ {[%emt 0:01:16]} Kxf4 {[%emt 0:01:19] Threatens to win with ...Rg3+.} 44. Bc2 {[%emt 0:02:14]} (44. b4 $17 Rg3+ (44... Bxb4 45. Rf2+ Ke5 46. Rxf7 $17) 45. Kh2 Bg1+ (45... Bxb4 46. Rf2+ Ke3 47. Re2+ Kf4 48. Rf2+ Ke3 49. Re2+ Kf4 $11) 46. Kh1) 44... f5 {[%emt 0:02:40] Strongly threatening ...Rg3+.} 45. Kf1 $2 {[%emt 0:01:16]} (45. b4 {keeps fighting.} Bd4 (45... Bxb4 $2 46. Rf2+ Ke3 47. Rf3+ Kd2 48. Bxf5 $19) 46. c5 bxc5 47. bxc5 Rxc5 (47... Rg3+ $2 48. Kh2 $19) 48. Kf1) 45... Rh3 {[%emt 0:04:51] White must now prevent ...Kf3.} ({Not} 45... Rf3+ 46. Kg2 $17) 46. Kg2 {[%emt 0:01:52]} Rg3+ {[%emt 0:02:08]} 47. Kh2 {[%emt 0:00:05]} Rg5 {[%emt 0:05:36] ( -> ...Kf3)} ({Less strong is} 47... Bg1+ 48. Kh1 $17) 48. b4 $2 {[%emt 0:01:35] [#]} (48. Rd2 $19) 48... Kf3 $1 {[%emt 0:08:33][%cal Rg5h5] Black mates.} (48... Bxb4 $2 49. Kh1 $19) 49. bxc5 {[%emt 0:01:45] KRB-KR} Rh5+ {[%emt 0:03:31]} 50. Kg1 {[%emt 0:00:05]} Kxe2 {[%emt 0:00:03]} 51. c6 {[%emt 0:00:23]} Rg5+ {[%emt 0:02:17]} 52. Kh2 {[%emt 0:00:04]} Kf2 {[%emt 0:00:09][%cal Rg5h5]} 53. Bxf5 {[%emt 0:00:58]} Rxf5 {[%emt 0:00:24][%cal Rf5h5]} 54. Kh3 {[%emt 0:00:03]} Rf4 {[%emt 0:00:33] Weighted Error Value: White=0.36/Black=0.03 (flawless) .  Mistake:       	White=6     	---        Inaccurate:     	White=1     	Black=1      OK:         	White=10    	Black=18     Best:        	White=3     	Black=1      Strong:       	---       	Black=1} 0-1

[Event "Uhlenkoeper-Open 2024"]
[Site "Uelzen"]
[Date "2024.12.28"]
[Round "3.3"]
[White "Parvanyan, Ashot"]
[Black "Bogomolow, Sergej"]
[Result "1-0"]
[ECO "E90"]
[WhiteElo "2399"]
[BlackElo "2090"]
[Annotator "TA"]
[PlyCount "71"]
[EventDate "2024.12.27"]
[EventType "swiss"]
[EventCountry "GER"]
[SourceTitle "playchess.com"]
[Source "ChessBase"]
[SourceQuality "1"]
[TimeControl "40/5400+30:1800+30"]

{[%evp 13,71,29,31,27,57,70,57,63,57,58,56,-4,82,75,80,78,79,67,75,56,98,89,101,85,152,148,158,129,147,122,200,201,287,277,361,379,746,748,762,746,729,720,1143,1351,1341,1258,29993,2198,29993,29994,29994,29995,29995,29996,29996,29997,29997,29998,29998,29999]} 1. Nf3 {[%emt 0:00:06]} Nf6 {[%emt 0:00:05]} 2. c4 {[%emt 0:00:06]} g6 {[%emt 0:00:15]} 3. Nc3 {[%emt 0:00:25]} Bg7 {[%emt 0:00:15]} 4. e4 {[%emt 0:00:50]} d6 {[%emt 0:00:15]} 5. d4 {[%emt 0:00:10]} O-O {[%emt 0:00:13]} 6. h3 {[%emt 0:00:22]} e5 {[%emt 0:01:14]} 7. d5 {[%emt 0:00:06]} Nh5 {[%emt 0:00:52]} 8. g3 {[%emt 0:00:18]} Qe8 {[%emt 0:02:02]} 9. Be2 {[%emt 0:05:38]} f5 {[%emt 0:06:21]} 10. exf5 {[%emt 0:00:13] White is slightly better.} gxf5 {[%emt 0:00:07]} 11. Nh4 {[%emt 0:19:56]} Nf6 {[%emt 0:06:09]} 12. g4 {[%emt 0:00:14]} (12. Rg1 $14) 12... Ne4 {[%emt 0:18:01]} (12... f4 $11 {keeps the balance.}) 13. Nxe4 $16 {[%emt 0:20:53]} fxe4 {[%emt 0:00:05]} 14. Be3 {[%emt 0:08:57]} Na6 {[%emt 0:05:11]} 15. Qd2 {[%emt 0:07:15]} Nc5 {[%emt 0:03:21]} 16. O-O-O {[%emt 0:02:25]} a5 {[%emt 0:15:40] White leaves nothing to chance now.} 17. Rhg1 {[%emt 0:02:41]} a4 {[%emt 0:03:49]} 18. Nf5 {[%emt 0:11:55]} Rf7 {[%emt 0:12:23]} (18... Bxf5 $142 19. gxf5 Kh8) 19. Nxg7 {[%emt 0:06:32]} Rxg7 {[%emt 0:01:19]} 20. h4 {[%emt 0:06:01][%cal Bh3h4,Bh4h5,Bh5g6][%mdl 32]} Kh8 {[%emt 0:04:18][%cal Oc5d3]} 21. h5 {[%emt 0:00:37]} b6 {[%emt 0:01:20]} (21... Nd3+ $16 22. Kb1 (22. Bxd3 exd3 23. Bh6 Rg8 $16) 22... Qf7) 22. g5 $18 {[%emt 0:02:41][%cal Bg4g5,Bg5g6][%mdl 32]} Bf5 {[%emt 0:00:38] [#]} (22... a3 {was worth a try.}) 23. g6 $1 {[%emt 0:00:06][%mdl 512]} Qd7 {[%emt 0:05:28][%cal Rh7g6]} (23... hxg6 24. hxg6) 24. Bh6 {[%emt 0:01:14]} Re7 $2 {[%emt 0:00:34]} (24... a3) 25. Qg5 {[%emt 0:02:23] And now Qf6+ would win.} hxg6 {[%emt 0:07:21]} 26. hxg6 {[%emt 0:00:04]} Kg8 {[%emt 0:00:39]} 27. Qf6 {[%emt 0:00:18]} Nd3+ {[%emt 0:03:05]} 28. Bxd3 {[%emt 0:00:30]} exd3 {[%emt 0:00:01] Black is weak on the dark squares} 29. Rh1 {[%emt 0:00:45] Threatening mate with Rh4.} Be4 {[%emt 0:00:18]} 30. Rh4 {[%emt 0:01:49]} (30. Bf8 $142 Bxh1 31. Rxh1 (31. Qxe7 Qxe7 32. Bxe7 Be4 $17) 31... Rg7 32. Bxg7 (32. Qxg7+ Qxg7 33. Bxg7 Kxg7 $17) 32... d2+ 33. Kxd2 Qxg7 34. Qe6+ Kf8 35. Rh8+ Qxh8 36. Qf7#) 30... a3 {[%emt 0:02:24][%cal Ba4a3,Ba3b2,Bb2b1][%mdl 32]} 31. Bf8 {[%emt 0:00:00][%csl Gf6][%cal Rh4h8] White mates.} (31. Rxe4 axb2+ 32. Kd2 Qa4 $19) 31... axb2+ {[%emt 0:00:33]} 32. Kd2 {[%emt 0:00:08][%csl Gf6][%cal Rh4h8]} b1=N+ {[%emt 0:00:10]} 33. Ke3 {[%emt 0:00:10][%csl Gf6][%cal Rh4h8]} Rg7 {[%emt 0:00:25]} 34. Bxg7 {[%emt 0:00:06]} (34. Rxe4 $2 {too greedy.} Qh3+ (34... Rxf8 $2 35. Qh4 $19) 35. f3 Qh6+ $19 (35... Rxf8 $2 36. Rh4 $19) (35... Rxf8 $2 36. Rh4 $19)) 34... Qxg7 {[%emt 0:00:05]} 35. Qe6+ {[%emt 0:00:03]} Kf8 {[%emt 0:00:10] [#]} 36. Rh8+ $3 {[%emt 0:00:04][%mdl 512] Weighted Error Value: White=0.09 (flawless) /Black=0.85.  Mistake:       	White=1     	Black=5      Inaccurate:     	---       	Black=3      OK:         	White=8     	Black=6      Best:        	White=1     	---        Brilliant:      	White=1     	---} 1-0

[Event "Uhlenkoeper-Open 2024"]
[Site "Uelzen"]
[Date "2024.12.28"]
[Round "3.4"]
[White "Tarasenko, Nazar"]
[Black "Bagrationi, Alexander"]
[Result "0-1"]
[ECO "A57"]
[WhiteElo "2011"]
[BlackElo "2384"]
[Annotator "TA"]
[PlyCount "64"]
[EventDate "2024.12.27"]
[EventType "swiss"]
[EventCountry "GER"]
[SourceTitle "playchess.com"]
[Source "ChessBase"]
[SourceQuality "1"]
[TimeControl "40/5400+30:1800+30"]

{[%evp 11,64,22,25,-21,-26,-27,-18,-29,-11,-33,-32,-38,-39,-31,-22,-31,-20,-27,-9,-33,-30,-49,-54,-45,-37,-29,-34,-50,-44,-175,-179,-249,-71,-71,-72,-58,-66,-40,-47,-64,-58,-72,-42,-15,-24,-98,-89,-97,-112,-105,-105,-79,-81,-1720,-1672]} 1. d4 {[%emt 0:00:03]} Nf6 {[%emt 0:00:28]} 2. c4 {[%emt 0:00:09]} c5 {[%emt 0:00:38]} 3. d5 {[%emt 0:00:12]} b5 {[%emt 0:00:05]} 4. cxb5 {[%emt 0:00:06]} a6 {[%emt 0:00:06]} 5. e3 {[%emt 0:00:02]} e6 {[%emt 0:00:23]} 6. Nc3 {[%emt 0:00:57]} exd5 {[%emt 0:01:57]} 7. Nf3 {[%emt 0:08:16]} (7. Nxd5 {might be stronger.} Bb7 8. Nxf6+ Qxf6 9. Nf3) 7... Bb7 $11 {[%emt 0:01:04]} 8. a4 {[%emt 0:02:50]} Be7 {[%emt 0:01:00]} 9. Be2 {[%emt 0:03:31] The position is equal.} O-O {[%emt 0:04:36]} 10. O-O {[%emt 0:02:02]} axb5 {[%emt 0:00:59]} 11. Bxb5 {[%emt 0:01:09]} Na6 {[%emt 0:00:24]} 12. b3 {[%emt 0:03:48]} Nc7 {[%emt 0:01:29]} 13. Bd3 {[%emt 0:01:18]} Ne4 {[%emt 0:01:26]} 14. Bb2 {[%emt 0:02:23]} Bf6 {[%emt 0:05:07]} 15. Rc1 {[%emt 0:02:40]} Ne6 {[%emt 0:00:49]} 16. Bb1 {[%emt 0:04:27]} Bxc3 {[%emt 0:05:08]} 17. Bxc3 {[%emt 0:00:07]} Nxc3 {[%emt 0:00:03]} 18. Rxc3 {[%emt 0:00:10]} Qf6 {[%emt 0:01:30]} 19. Qd3 {[%emt 0:02:45][%csl Gb1][%cal Rd3h7]} g6 {[%emt 0:04:46] ...d4 would now be deadly. Active counter play!} 20. Rd1 {[%emt 0:02:57]} (20. Rcc1 $1 $15) 20... d4 $19 {[%emt 0:05:55]} 21. exd4 {[%emt 0:00:41]} (21. Rcc1 {keeps fighting.}) 21... cxd4 $2 {[%emt 0:00:10]} (21... Rfe8 $1 $19 {Threatens to win with ...Nf4.} 22. Qd2 (22. dxc5 $2 Nf4 $19) 22... cxd4) 22. Nxd4 $17 {[%emt 0:01:08]} Nf4 {[%emt 0:02:41][%csl LRd3,LRg2]} 23. Qd2 {[%emt 0:01:43]} Nxg2 {[%emt 0:00:40] And now ...Rfe8 would win.} 24. Rg3 {[%emt 0:00:45]} ({Don't go for} 24. Rc7 $2 Nf4 25. f3 (25. Rxb7 $2 {gets mated.} Qg5+ 26. Kf1 Qg2+ 27. Ke1 Qh1#) 25... Bxf3 26. Nxf3 Qb6+ 27. Nd4 Qxc7 $19) 24... Nf4 {[%emt 0:00:27] Strongly threatening ...Rfe8.} 25. Nf5 {[%emt 0:07:06]} Nh5 {[%emt 0:01:16]} 26. Nh6+ {[%emt 0:03:05]} Kg7 {[%emt 0:03:26]} 27. Ng4 {[%emt 0:00:43]} Qf4 $36 {[%emt 0:06:57][%mdl 2048] White is under pressure.} 28. Qb2+ {[%emt 0:07:03] [#]} (28. Qxf4 $1 $11 {remains equal.} Nxf4 29. Bd3) 28... f6 $1 {[%emt 0:01:17]} ({Don't play} 28... Kg8 29. h3 $11) 29. Rxd7+ {[%emt 0:00:12]} Rf7 {[%emt 0:00:08] Chess con chili.} 30. Rd4 {[%emt 0:01:28] [#]} Re8 $1 {[%emt 0:11:44][%mdl 1024] Black has strong compensation.} 31. Ne3 {[%emt 0:02:45]} Qe5 {[%emt 0:03:16]} 32. Nf5+ {[%emt 0:01:12][%mdl 8192] [#]} (32. Rgg4 $17) 32... Qxf5 $3 {[%emt 0:00:10][%mdl 512] Weighted Error Value: White=0.35/Black=0.10 (very precise) .  Loses game:     	White=1     	---        Missed win:     	---       	Black=1      Mistake:       	White=3     	---        Inaccurate:     	---       	Black=1      OK:         	White=8     	Black=8      Best:        	White=2     	Black=4      Strong:       	---       	Black=1      Brilliant:      	---       	Black=1} 0-1

[Event "Uhlenkoeper-Open 2024"]
[Site "Uelzen"]
[Date "2024.12.28"]
[Round "3.5"]
[White "Stopa, Jacek"]
[Black "Dehn, Marcus"]
[Result "1-0"]
[ECO "E40"]
[WhiteElo "2323"]
[BlackElo "2053"]
[Annotator "RC"]
[PlyCount "65"]
[EventDate "2024.12.27"]
[EventType "swiss"]
[EventCountry "GER"]
[SourceTitle "playchess.com"]
[Source "ChessBase"]
[SourceQuality "1"]
[TimeControl "40/5400+30:1800+30"]

1. d4 {[%emt 0:00:03]} Nf6 {[%emt 0:00:12]} 2. c4 {[%emt 0:00:21]} e6 {[%emt 0:00:11]} 3. Nc3 {[%emt 0:00:49]} Bb4 {[%emt 0:00:23]} 4. e3 {[%emt 0:01:10]} O-O {[%emt 0:01:48]} 5. Bd3 {[%emt 0:00:33]} d6 {[%emt 0:02:21]} 6. Nge2 {[%emt 0:01:06]} e5 {[%emt 0:01:10]} 7. O-O {[%emt 0:04:54]} Nc6 {[%emt 0:06:43]} 8. d5 {[%emt 0:00:42]} Ne7 {[%emt 0:01:13]} 9. a3 {[%emt 0:00:18]} Bxc3 {[%emt 0:03:55]} 10. Nxc3 {[%emt 0:00:06]} Ng6 {[%emt 0:01:56]} 11. b4 {[%emt 0:02:02]} Nd7 {[%emt 0:04:25]} 12. Qc2 {[%emt 0:02:57]} a5 {[%emt 0:02:29]} 13. Bd2 {[%emt 0:02:31]} Qe7 {[%emt 0:04:20]} 14. f3 {[%emt 0:04:28]} Nb6 {[%emt 0:11:18]} 15. Rac1 {[%emt 0:07:04]} axb4 {[%emt 0:02:42]} 16. axb4 {[%emt 0:01:43]} Bd7 {[%emt 0:00:07]} 17. Qb3 {[%emt 0:03:14]} Kh8 {[%emt 0:03:09]} 18. Ne2 {[%emt 0:01:48]} Ba4 {[%emt 0:03:43]} 19. Qb1 {[%emt 0:00:49]} Bd7 {[%emt 0:01:19]} 20. e4 {[%emt 0:05:32]} Ra3 {[%emt 0:09:38]} 21. Rc3 {[%emt 0:06:52]} Rxc3 {[%emt 0:02:19]} 22. Bxc3 {[%emt 0:01:16]} Qg5 {[%emt 0:00:43]} 23. Qc1 {[%emt 0:00:56]} Qxc1 {[%emt 0:03:36]} 24. Rxc1 {[%emt 0:00:01]} Na4 {[%emt 0:02:00]} 25. Ba1 {[%emt 0:02:06]} b6 {[%emt 0:05:11]} 26. Rc2 {[%emt 0:05:48]} Nh4 {[%emt 0:02:41]} 27. f4 {[%emt 0:05:05]} f5 {[%emt 0:03:46]} 28. fxe5 {[%emt 0:02:21]} fxe4 {[%emt 0:00:10]} 29. Bxe4 {[%emt 0:00:13]} dxe5 {[%emt 0:00:07]} 30. Ng3 {[%emt 0:01:14]} Re8 {[%emt 0:01:36]} 31. c5 {[%emt 0:04:14]} bxc5 {[%emt 0:04:25]} 32. bxc5 {[%emt 0:00:02]} g6 {[%emt 0:00:12]} 33. Rc4 {[%emt 0:01:45]} 1-0

[Event "Uhlenkoeper-Open 2024"]
[Site "Uelzen"]
[Date "2024.12.28"]
[Round "3.6"]
[White "von Estorff, Jacob"]
[Black "Buecklers, Martin"]
[Result "1/2-1/2"]
[ECO "B06"]
[WhiteElo "2209"]
[BlackElo "1859"]
[Annotator "RC"]
[PlyCount "124"]
[EventDate "2024.12.27"]
[EventType "swiss"]
[EventCountry "GER"]
[SourceTitle "playchess.com"]
[Source "ChessBase"]
[SourceQuality "1"]
[TimeControl "40/5400+30:1800+30"]

1. e4 {[%emt 1:31:00]} g6 {[%emt 0:01:32]} 2. d4 {[%emt 0:00:00]} Bg7 {[%emt 0:00:08]} 3. c3 {[%emt 0:00:00]} d5 {[%emt 0:03:45]} 4. e5 {[%emt 0:00:00]} f6 {[%emt 0:03:16]} 5. f4 {[%emt 0:00:00]} Nh6 {[%emt 0:02:03]} 6. Bd3 {[%emt 0:00:00]} Bf5 {[%emt 0:14:00]} 7. Nf3 {[%emt 0:00:00]} Bxd3 {[%emt 0:00:35]} 8. Qxd3 {[%emt 0:00:00]} c6 {[%emt 0:04:06]} 9. O-O {[%emt 0:00:00]} O-O {[%emt 0:00:42]} 10. a4 {[%emt 0:00:00]} Na6 {[%emt 0:04:12]} 11. b4 {[%emt 0:00:00]} Nc7 {[%emt 0:01:05]} 12. Na3 {[%emt 0:00:00]} a6 {[%emt 0:02:14]} 13. Ra2 {[%emt 0:00:00]} Qd7 {[%emt 0:01:01]} 14. Nc2 {[%emt 0:00:00]} Qf5 {[%emt 0:11:43]} 15. Qe2 {[%emt 0:00:00]} Ne6 {[%emt 0:07:36]} 16. g3 {[%emt 0:00:00]} fxe5 {[%emt 0:10:07]} 17. Ne3 {[%emt 0:00:00]} Qh3 {[%emt 0:12:00]} 18. dxe5 {[%emt 0:00:00]} Ng4 {[%emt 0:00:40]} 19. c4 {[%emt 0:00:00]} Nxe3 {[%emt 0:06:32]} 20. Bxe3 {[%emt 0:00:00]} Qf5 {[%emt 0:02:16]} 21. Rd1 {[%emt 0:00:00]} dxc4 {[%emt 0:00:15]} 22. Qxc4 {[%emt 0:00:00]} Kh8 {[%emt 0:03:41]} 23. Rad2 {[%emt 0:00:00]} Rfd8 {[%emt 0:01:34]} 24. Nh4 {[%emt 0:02:27]} Qg4 {[%emt 0:00:46]} 25. Qxe6 {[%emt 0:02:47]} Qxe6 {[%emt 0:01:29]} 26. Rxd8+ {[%emt 0:00:05]} Rxd8 {[%emt 0:00:05]} 27. Rxd8+ {[%emt 0:00:04]} Bf8 {[%emt 0:00:09]} 28. Rxf8+ {[%emt 0:00:28]} Kg7 {[%emt 0:00:05]} 29. Rb8 {[%emt 0:01:22]} Qb3 {[%emt 0:00:51]} 30. Bc5 {[%emt 0:00:13]} Qd1+ {[%emt 0:01:12]} 31. Kg2 {[%emt 0:00:12]} Qd2+ {[%emt 0:00:57]} 32. Kh3 {[%emt 0:01:18]} Qd7+ {[%emt 0:00:17]} 33. e6 {[%emt 0:05:58]} Qxe6+ {[%emt 0:00:47]} 34. f5 {[%emt 0:00:02]} Qd7 {[%emt 0:00:35]} 35. Kg2 {[%emt 0:01:09]} Qd2+ {[%emt 0:01:30]} 36. Kh3 {[%emt 0:00:38]} Qd7 {[%emt 0:00:07]} 37. g4 {[%emt 0:00:21]} Qd3+ {[%emt 0:00:33]} 38. Kg2 {[%emt 0:00:03]} Qe2+ {[%emt 0:00:38]} 39. Kh3 {[%emt 0:01:06]} h5 {[%emt 0:01:11]} 40. gxh5 {[%emt 0:00:43]} gxh5 {[%emt 0:00:18]} 41. f6+ {[%emt 0:07:01]} Kf7 {[%emt 0:01:23]} 42. Kg3 {[%emt 0:01:26]} Qe5+ {[%emt 0:06:24]} 43. Kg2 {[%emt 0:02:04]} Qxb8 {[%emt 0:00:44]} 44. Bxe7 {[%emt 0:00:19]} Qf4 {[%emt 0:01:56]} 45. Nf3 {[%emt 0:00:06]} h4 {[%emt 0:01:09]} 46. a5 {[%emt 0:01:36]} Ke6 {[%emt 0:02:12]} 47. Kf2 {[%emt 0:00:28]} Kd5 {[%emt 0:00:20]} 48. Ke2 {[%emt 0:00:33]} Qg4 {[%emt 0:02:28]} 49. Ke3 {[%emt 0:04:09]} Qe4+ {[%emt 0:01:09]} 50. Kf2 {[%emt 0:00:05]} Qf4 {[%emt 0:00:23]} 51. Ke2 {[%emt 0:00:15]} Ke4 {[%emt 0:01:29]} 52. Nd2+ {[%emt 0:00:38]} Kf5 {[%emt 0:00:27]} 53. Kd3 {[%emt 0:06:15]} Ke6 {[%emt 0:04:15]} 54. Ne4 {[%emt 0:00:35]} Qf5 {[%emt 0:01:12]} 55. Kd4 {[%emt 0:01:09]} Qe5+ {[%emt 0:00:16]} 56. Kd3 {[%emt 0:00:12]} Qf5 {[%emt 0:01:44]} 57. Kd4 {[%emt 0:00:04]} Qd5+ {[%emt 0:00:25]} 58. Ke3 {[%emt 0:00:04]} Ke5 {[%emt 0:01:37]} 59. Nf2 {[%emt 0:03:29]} Qd4+ {[%emt 0:00:36]} 60. Kf3 {[%emt 0:00:15]} Qf4+ {[%emt 0:01:34]} 61. Ke2 {[%emt 0:02:05]} Kd4 {[%emt 0:01:43]} 62. h3 {[%emt 0:01:06]} Qe5+ {[%emt 0:01:11]} 1/2-1/2